[Event "Open Mancomunitat de la Ribera Alta (Sumacàrcer)"]
[Site "Sumacàrcer, Spain"]
[Date "2018.11.18"]
[Round "4.2"]
[White "Torres Sanchez, Jose"]
[Black "Campos Gambuti, Luis Maria"]
[Result "1-0"]
[TimeControl "5m+3s"]
[WhiteElo "2183"]
[BlackElo "2432"]

1. e4 {[%clk 00:05:05]} {[%emt 00:00:04]} Nf6 {[%clk 00:05:05]} 2. e5 {[%clk
00:05:03]} {[%emt 00:00:04]} Nd5 {[%clk 00:05:07]} 3. d4 {[%emt 00:00:11]} d6 4.
c4 {[%clk 00:04:57]} Nb6 {[%clk 00:05:12]} {[%emt 00:00:03]} 5. exd6 {[%clk
00:04:59]} cxd6 {[%clk 00:05:14]} {[%emt 00:00:04]} 6. Nc3 {[%clk 00:05:01]} g6
{[%clk 00:05:16]} 7. Be3 {[%clk 00:05:02]} {[%emt 00:00:04]} Bg7 {[%clk
00:05:19]} 8. Rc1 {[%clk 00:05:03]} {[%emt 00:00:03]} O-O {[%clk 00:05:17]}
{[%emt 00:00:03]} 9. b3 {[%clk 00:05:05]} Bf5 {[%clk 00:05:09]} {[%emt
00:00:11]} 10. Nf3 {[%clk 00:05:07]} {[%emt 00:00:04]} Bg4 {[%clk 00:05:03]}
{[%emt 00:00:09]} 11. Be2 {[%clk 00:04:59]} {[%emt 00:00:13]} d5 {[%clk
00:05:04]} 12. c5 {[%clk 00:04:56]} {[%emt 00:00:13]} Nc8 {[%clk 00:05:06]} 13.
Ne5 {[%clk 00:04:43]} {[%emt 00:00:07]} Bxe2 {[%clk 00:05:04]} {[%emt
00:00:10]} 14. Nxe2 {[%clk 00:04:39]} {[%emt 00:00:04]} Qa5+ {[%clk 00:03:25]}
{[%emt 00:01:39]} 15. Qd2 {[%clk 00:04:40]} {[%emt 00:00:04]} Qxd2+ {[%clk
00:03:26]} {[%emt 00:00:03]} 16. Bxd2 {[%clk 00:04:40]} e6 {[%clk 00:03:27]}
{[%emt 00:00:04]} 17. O-O {[%clk 00:04:24]} {[%emt 00:00:14]} Ne7 {[%clk
00:03:25]} {[%emt 00:00:13]} 18. f4 {[%clk 00:03:50]} {[%emt 00:00:33]} a5
{[%clk 00:03:09]} {[%emt 00:00:19]} 19. Nc3 {[%clk 00:03:43]} {[%emt 00:00:09]}
Nbc6 {[%clk 00:03:07]} {[%emt 00:00:15]} 20. Nb5 {[%clk 00:03:43]} Nf5 {[%clk
00:02:53]} {[%emt 00:00:12]} 21. Bc3 {[%clk 00:03:34]} {[%emt 00:00:08]} Nb4
{[%clk 00:02:23]} {[%emt 00:00:38]} 22. a3 {[%clk 00:03:14]} {[%emt 00:00:19]}
Na2 {[%clk 00:02:22]} {[%emt 00:00:27]} 23. Rc2 {[%clk 00:03:14]} Nxc3 {[%clk
00:02:23]} 24. Rxc3 {[%clk 00:03:16]} h5 {[%clk 00:02:18]} {[%emt 00:00:10]} 25.
Rd1 {[%clk 00:03:09]} Rfc8 {[%clk 00:02:12]} 26. g3 {[%clk 00:02:59]} {[%emt
00:00:16]} Ra6 {[%clk 00:02:00]} {[%emt 00:00:15]} 27. Kf2 {[%clk 00:02:47]}
{[%emt 00:00:12]} Ne7 {[%clk 00:01:54]} {[%emt 00:00:16]} 28. h3 {[%clk
00:02:21]} {[%emt 00:00:21]} Nc6 {[%clk 00:01:49]} {[%emt 00:00:30]} 29. Ke3
{[%clk 00:02:13]} {[%emt 00:00:06]} Bf8 {[%clk 00:01:42]} 30. Nd7 {[%clk
00:01:53]} {[%emt 00:00:16]} Na7 {[%clk 00:01:29]} {[%emt 00:00:34]} 31. a4
{[%clk 00:01:38]} {[%emt 00:00:07]} Nc6 {[%clk 00:01:32]} 32. g4 {[%clk
00:01:34]} {[%emt 00:00:05]} hxg4 {[%clk 00:01:28]} {[%emt 00:00:05]} 33. hxg4
{[%clk 00:01:36]} Bg7 {[%clk 00:01:24]} {[%emt 00:00:10]} 34. g5 {[%clk
00:01:26]} {[%emt 00:00:09]} Rd8 {[%clk 00:01:21]} {[%emt 00:00:28]} 35. Nf6+
{[%clk 00:01:26]} Kf8 {[%clk 00:01:23]} 36. Rh1 {[%clk 00:01:18]} {[%emt
00:00:05]} Ne7 {[%clk 00:01:10]} {[%emt 00:00:10]} 37. Kd3 {[%clk 00:01:19]}
{[%emt 00:00:03]} Nf5 {[%clk 00:01:09]} 38. Rhc1 {[%clk 00:01:06]} {[%emt
00:00:13]} Rc6 {[%clk 00:01:02]} {[%emt 00:00:08]} 39. Na7 {[%clk 00:01:05]}
{[%emt 00:00:33]} Ra6 {[%clk 00:01:02]} 40. Nb5 {[%clk 00:00:53]} Rc6 {[%clk
00:01:03]} 41. Na7 {[%clk 00:00:49]} Ra6 {[%clk 00:01:05]} 42. Nb5 {[%clk
00:00:48]} {[%emt 00:00:09]} Ke7 {[%clk 00:01:07]} {[%emt 00:00:04]} 43. c6
{[%clk 00:00:48]} bxc6 {[%clk 00:01:03]} {[%emt 00:00:04]} 44. Rxc6 {[%clk
00:00:50]} Rxc6 {[%clk 00:00:56]} {[%emt 00:00:09]} 45. Rxc6 {[%clk 00:00:52]}
{[%emt 00:00:21]} Bxf6 {[%clk 00:00:48]} {[%emt 00:00:06]} 46. Rc7+ {[%clk
00:00:54]} Rd7 {[%clk 00:00:48]} 47. gxf6+ Kd8 48. Rc6 {[%clk 00:00:48]} {[%emt
00:00:07]} Nd6 {[%clk 00:00:46]} {[%emt 00:00:04]} 49. Rxd6 {[%clk 00:00:50]}
{[%emt 00:00:04]} 1-0

[Event "Open Mancomunitat de la Ribera Alta (Sumacàrcer)"]
[Site "Sumacàrcer, Spain"]
[Date "2018.11.18"]
[Round "4.3"]
[White "Ibanez Aullana, Ramon"]
[Black "Serarols Mabras, Bernat"]
[Result "1-0"]
[TimeControl "5m+3s"]
[WhiteElo "2282"]
[BlackElo "2191"]

1. c4 {[%clk 00:05:05]} {[%emt 00:00:14]} e6 {[%clk 00:05:05]} 2. Nf3 {[%clk
00:05:01]} {[%emt 00:00:04]} d5 {[%clk 00:05:07]} 3. g3 {[%clk 00:05:03]} Nf6
{[%clk 00:05:08]} 4. Bg2 {[%clk 00:05:05]} d4 {[%clk 00:05:10]} {[%emt
00:00:03]} 5. O-O {[%clk 00:05:06]} c5 {[%clk 00:05:12]} 6. b4 {[%clk
00:04:55]} {[%emt 00:00:15]} cxb4 {[%emt 00:00:05]} 7. a3 {[%emt 00:00:05]} a5
{[%clk 00:04:55]} {[%emt 00:00:18]} 8. Bb2 {[%clk 00:04:38]} {[%emt 00:00:39]}
Nc6 {[%clk 00:04:55]} {[%emt 00:00:04]} 9. d3 {[%clk 00:04:40]} e5 {[%clk
00:04:31]} {[%emt 00:00:06]} 10. e3 {[%clk 00:04:40]} {[%emt 00:00:03]} dxe3
{[%clk 00:03:57]} {[%emt 00:00:36]} 11. fxe3 {[%clk 00:04:10]} {[%emt
00:00:30]} e4 {[%clk 00:03:57]} {[%emt 00:00:07]} 12. Ng5 {[%clk 00:03:49]}
{[%emt 00:00:21]} Qxd3 {[%clk 00:03:52]} {[%emt 00:00:12]} 13. Nxe4 {[%clk
00:03:12]} {[%emt 00:00:35]} Qxe3+ {[%clk 00:02:54]} {[%emt 00:01:00]} 14. Nf2
{[%clk 00:03:13]} {[%emt 00:00:31]} Be6 {[%clk 00:02:33]} {[%emt 00:00:03]} 15.
Re1 {[%clk 00:03:02]} {[%emt 00:00:06]} Qb6 {[%clk 00:02:02]} {[%emt 00:00:36]}
16. Nd2 {[%clk 00:02:03]} {[%emt 00:01:00]} Bc5 {[%clk 00:02:01]} {[%emt
00:00:11]} 17. Re2 {[%clk 00:01:18]} {[%emt 00:00:42]} Bxf2+ {[%clk 00:01:36]}
{[%emt 00:00:45]} 18. Rxf2 {[%clk 00:01:19]} Ng4 {[%clk 00:01:37]} 19. c5
{[%clk 00:01:04]} {[%emt 00:00:07]} Qxc5 {[%clk 00:01:36]} {[%emt 00:00:05]} 20.
Ne4 {[%clk 00:01:06]} Nxf2 {[%clk 00:01:34]} {[%emt 00:00:04]} 21. Nxc5 {[%clk
00:00:36]} {[%emt 00:00:32]} Nxd1 {[%clk 00:01:35]} {[%emt 00:00:11]} 22. Rxd1
{[%clk 00:00:36]} O-O {[%clk 00:00:39]} {[%emt 00:00:55]} 23. Nxb7 {[%clk
00:00:37]} {[%emt 00:00:04]} Rac8 {[%clk 00:00:14]} {[%emt 00:00:23]} 24. Nd6
{[%clk 00:00:39]} {[%emt 00:01:06]} Rc7 {[%clk 00:00:10]} 25. Nb5 {[%clk
00:00:40]} Rcc8 {[%clk 00:00:11]} 26. Nd6 {[%clk 00:00:37]} Rc7 {[%clk
00:00:14]} 27. Rc1 {[%clk 00:00:38]} Rd8 {[%clk 00:00:14]} 28. Nb5 {[%clk
00:00:40]} Rcc8 {[%clk 00:00:15]} 29. Bxc6 {[%clk 00:00:35]} bxa3 {[%clk
00:00:17]} 30. Bxa3 {[%clk 00:00:36]} Bd5 {[%clk 00:00:18]} 31. Nd4 {[%clk
00:00:31]} Bxc6 32. Nxc6 {[%clk 00:00:33]} Rxc6 {[%emt 00:00:06]} 33. Rxc6
{[%clk 00:00:35]} Rd1+ {[%clk 00:00:21]} 34. Kf2 {[%clk 00:00:37]} h6 {[%clk
00:00:20]} 35. Rc8+ {[%clk 00:00:32]} {[%emt 00:00:04]} Kh7 {[%clk 00:00:22]}
36. Rc7 {[%clk 00:00:34]} Kg6 {[%clk 00:00:24]} 37. Rc6+ {[%clk 00:00:36]} f6
{[%clk 00:00:26]} 38. Bc1 {[%clk 00:00:34]} {[%emt 00:00:06]} a4 {[%clk
00:00:24]} {[%emt 00:00:04]} 39. h4 {[%clk 00:00:36]} {[%emt 00:00:04]} Rd3
{[%clk 00:00:25]} 40. Ra6 {[%clk 00:00:35]} {[%emt 00:00:07]} Rc3 {[%clk
00:00:28]} 41. Bd2 {[%clk 00:00:37]} Rc2 {[%clk 00:00:30]} 42. Ke3 {[%clk
00:00:40]} Ra2 {[%clk 00:00:32]} {[%emt 00:00:04]} 43. Bc3 {[%clk 00:00:38]}
Ra3 {[%clk 00:00:34]} {[%emt 00:00:05]} 44. Kd2 {[%clk 00:00:40]} Ra2+ {[%clk
00:00:35]} 45. Kd3 {[%clk 00:00:42]} Rg2 {[%clk 00:00:37]} 46. Be1 {[%clk
00:00:43]} {[%emt 00:00:18]} Ra2 {[%clk 00:00:38]} 47. Bd2 {[%clk 00:00:45]}
Kf5 {[%clk 00:00:37]} 48. Ra7 {[%clk 00:00:46]} g5 {[%clk 00:00:39]} 49. Rh7
{[%clk 00:00:44]} {[%emt 00:00:04]} gxh4 {[%clk 00:00:40]} 50. gxh4 {[%clk
00:00:44]} {[%emt 00:00:14]} Ra3+ {[%clk 00:00:39]} {[%emt 00:00:03]} 51. Ke2
{[%clk 00:00:45]} Rb3 {[%clk 00:00:37]} 52. Rxh6 {[%clk 00:00:47]} a3 {[%clk
00:00:40]} 53. Rh8 {[%clk 00:00:44]} {[%emt 00:00:03]} a2 {[%clk 00:00:39]}
{[%emt 00:00:03]} 54. Ra8 {[%clk 00:00:46]} {[%emt 00:00:04]} Rh3 {[%clk
00:00:40]} 55. Be1 {[%clk 00:00:46]} {[%emt 00:00:03]} Rh2+ {[%clk 00:00:42]}
56. Bf2 {[%clk 00:00:48]} Kg4 {[%clk 00:00:40]} {[%emt 00:00:05]} 57. Rxa2
{[%clk 00:00:49]} {[%emt 00:00:12]} f5 {[%clk 00:00:42]} 58. Ra8 {[%clk
00:00:47]} Kf4 {[%clk 00:00:43]} {[%emt 00:00:03]} 59. Rg8 {[%clk 00:00:47]}
Ke4 {[%clk 00:00:43]} {[%emt 00:00:03]} 60. Re8+ {[%clk 00:00:48]} Kf4 {[%clk
00:00:45]} {[%emt 00:00:04]} 61. Kf1 {[%clk 00:00:49]} Rh3 {[%clk 00:00:45]}
{[%emt 00:00:04]} 62. Kg2 {[%clk 00:00:49]} {[%emt 00:00:03]} Ra3 {[%clk
00:00:46]} 63. Rg8 {[%clk 00:00:43]} {[%emt 00:00:13]} Ra2 {[%clk 00:00:48]} 64.
h5 {[%clk 00:00:44]} Ra6 {[%clk 00:00:46]} {[%emt 00:00:06]} 65. Rg6 {[%clk
00:00:46]} {[%emt 00:00:19]} Ra8 {[%clk 00:00:41]} 66. h6 {[%clk 00:00:45]} Rh8
{[%clk 00:00:42]} 67. Bh4 {[%clk 00:00:44]} Ra8 {[%clk 00:00:35]} {[%emt
00:00:05]} 68. Bf6 {[%clk 00:00:41]} {[%emt 00:00:35]} Ra2+ {[%clk 00:00:38]}
69. Kh3 {[%clk 00:00:40]} Ra3+ {[%clk 00:00:40]} 70. Kh4 {[%clk 00:00:41]} Ra2
{[%clk 00:00:42]} 71. Kh5 {[%clk 00:00:43]} Ra7 {[%clk 00:00:35]} 72. Bg5+
{[%clk 00:00:38]} {[%emt 00:00:03]} Kf3 {[%clk 00:00:36]} 73. Rg7 {[%clk
00:00:40]} Ra1 {[%clk 00:00:38]} {[%emt 00:00:06]} 74. h7 {[%clk 00:00:42]}
Rh1+ {[%clk 00:00:39]} 75. Bh4 {[%clk 00:00:44]} 1-0

[Event "Open Mancomunitat de la Ribera Alta (Sumacàrcer)"]
[Site "Sumacàrcer, Spain"]
[Date "2018.11.18"]
[Round "4.4"]
[White "Kovacevic, Slobodan"]
[Black "Garcia Vasquez, Jhoel"]
[Result "1-0"]
[TimeControl "5m+3s"]
[WhiteElo "2455"]
[BlackElo "2298"]

1. d4 {[%clk 00:05:05]} {[%emt 00:00:16]} Nf6 {[%clk 00:04:59]} 2. Nf3 {[%clk
00:05:07]} {[%emt 00:00:03]} d5 {[%clk 00:04:54]} {[%emt 00:00:03]} 3. Bf4
{[%clk 00:05:07]} {[%emt 00:00:03]} c5 {[%clk 00:04:45]} {[%emt 00:00:14]} 4.
e3 {[%clk 00:05:09]} Nc6 {[%clk 00:04:40]} {[%emt 00:00:07]} 5. c3 {[%clk
00:05:10]} Qb6 {[%clk 00:04:42]} {[%emt 00:00:03]} 6. Qb3 {[%clk 00:05:12]} c4
{[%clk 00:04:43]} {[%emt 00:00:03]} 7. Qc2 {[%clk 00:05:14]} {[%emt 00:00:06]}
Bf5 {[%clk 00:04:43]} 8. Qc1 {[%clk 00:05:16]} e6 {[%clk 00:04:41]} {[%emt
00:00:07]} 9. Nbd2 {[%clk 00:05:16]} {[%emt 00:00:04]} Be7 {[%clk 00:04:25]}
{[%emt 00:00:11]} 10. Be2 {[%clk 00:05:17]} {[%emt 00:00:09]} Qd8 {[%clk
00:04:17]} {[%emt 00:00:06]} 11. Bd1 {[%clk 00:05:17]} {[%emt 00:00:03]} b5
{[%clk 00:04:14]} {[%emt 00:00:05]} 12. a3 {[%clk 00:05:19]} {[%emt 00:00:10]}
a5 {[%clk 00:04:05]} {[%emt 00:00:05]} 13. Bc2 {[%clk 00:05:20]} {[%emt
00:00:03]} O-O {[%clk 00:04:05]} {[%emt 00:00:03]} 14. O-O {[%clk 00:05:02]}
{[%emt 00:00:17]} Qb6 {[%clk 00:03:49]} {[%emt 00:00:21]} 15. Re1 {[%clk
00:04:29]} {[%emt 00:00:44]} Ne4 {[%clk 00:03:05]} {[%emt 00:00:46]} 16. Nxe4
{[%clk 00:04:22]} {[%emt 00:00:22]} Bxe4 {[%clk 00:03:04]} 17. Bxe4 {[%clk
00:04:23]} dxe4 {[%clk 00:03:04]} 18. Nd2 {[%clk 00:04:25]} f5 {[%clk
00:03:04]} {[%emt 00:00:09]} 19. a4 {[%clk 00:04:22]} Rfc8 {[%clk 00:02:54]}
{[%emt 00:00:06]} 20. Qc2 {[%clk 00:04:10]} {[%emt 00:00:12]} Bf8 {[%clk
00:02:31]} {[%emt 00:00:27]} 21. axb5 {[%clk 00:04:05]} {[%emt 00:00:33]} Qxb5
{[%clk 00:02:32]} 22. Ra4 {[%clk 00:04:00]} {[%emt 00:00:06]} Ne7 {[%clk
00:02:20]} 23. Rea1 {[%clk 00:03:56]} {[%emt 00:00:05]} Nd5 {[%clk 00:02:21]}
24. Be5 {[%clk 00:03:57]} {[%emt 00:00:33]} Be7 {[%clk 00:02:18]} 25. h3 {[%clk
00:03:50]} {[%emt 00:00:02]} Bd8 26. Bd6 {[%clk 00:03:29]} {[%emt 00:00:06]}
Bb6 {[%clk 00:02:17]} {[%emt 00:00:07]} 27. R1a2 {[%clk 00:03:17]} {[%emt
00:00:14]} Ra7 {[%clk 00:02:14]} {[%emt 00:00:04]} 28. Qd1 {[%clk 00:03:04]}
{[%emt 00:00:25]} Rd7 {[%clk 00:02:14]} 29. Be5 {[%clk 00:03:02]} {[%emt
00:00:04]} Ra7 {[%clk 00:00:49]} {[%emt 00:01:24]} 30. Qf1 {[%clk 00:03:01]}
{[%emt 00:00:24]} Bd8 {[%clk 00:00:21]} {[%emt 00:00:09]} 31. Nxc4 {[%clk
00:02:32]} {[%emt 00:00:34]} Nb6 {[%clk 00:00:19]} {[%emt 00:00:07]} 32. Nxb6
{[%clk 00:02:23]} {[%emt 00:00:07]} Qxb6 {[%clk 00:00:19]} {[%emt 00:00:11]} 33.
c4 {[%clk 00:02:21]} {[%emt 00:00:03]} Qc6 {[%clk 00:00:09]} {[%emt 00:00:08]}
34. c5 {[%clk 00:02:15]} {[%emt 00:00:11]} Rb7 {[%clk 00:00:09]} {[%emt
00:00:03]} 35. Qc4 {[%clk 00:02:08]} {[%emt 00:00:08]} Kf7 {[%clk 00:00:11]}
{[%emt 00:00:32]} 36. b4 {[%clk 00:02:04]} axb4 {[%clk 00:00:12]} {[%emt
00:00:04]} 37. Rxb4 {[%clk 00:02:06]} Rxb4 {[%clk 00:00:13]} 38. Qxb4 {[%clk
00:02:07]} Be7 {[%clk 00:00:12]} 39. Ra7 {[%clk 00:02:06]} Ra8 {[%clk
00:00:12]} 40. Rc7 {[%clk 00:01:36]} {[%emt 00:00:25]} Qd5 {[%clk 00:00:14]}
{[%emt 00:00:03]} 41. Bxg7 {[%clk 00:01:06]} {[%emt 00:00:29]} f4 {[%clk
00:00:10]} {[%emt 00:00:35]} 42. Qb7 {[%clk 00:00:53]} Ra1+ {[%clk 00:00:11]}
43. Kh2 {[%clk 00:00:56]} Qxb7 {[%clk 00:00:11]} 44. Rxb7 {[%clk 00:00:58]}
{[%emt 00:00:04]} Ke8 {[%clk 00:00:09]} 45. exf4 {[%clk 00:00:56]} {[%emt
00:00:03]} Bh4 {[%clk 00:00:10]} {[%emt 00:00:03]} 46. g3 {[%clk 00:00:54]}
{[%emt 00:00:03]} e3 {[%clk 00:00:12]} 47. fxe3 {[%clk 00:00:52]} {[%emt
00:00:10]} Ra2+ {[%clk 00:00:14]} {[%emt 00:00:04]} 48. Kh1 {[%clk 00:00:54]}
Bxg3 {[%clk 00:00:16]} 49. Be5 {[%clk 00:00:50]} {[%emt 00:00:04]} h5 {[%clk
00:00:13]} {[%emt 00:00:04]} 50. h4 {[%clk 00:00:49]} {[%emt 00:00:06]} Bxh4
{[%clk 00:00:13]} {[%emt 00:00:04]} 51. c6 {[%clk 00:00:51]} Rc2 {[%clk
00:00:14]} 52. Rb8+ {[%clk 00:00:50]} {[%emt 00:00:14]} Ke7 {[%clk 00:00:15]}
53. c7 {[%clk 00:00:52]} Kd7 {[%clk 00:00:17]} 54. Rh8 {[%clk 00:00:46]} {[%emt
00:00:03]} Rc1+ {[%clk 00:00:08]} {[%emt 00:00:13]} 55. Kg2 {[%clk 00:00:47]}
{[%emt 00:00:03]} Rc2+ {[%clk 00:00:10]} 56. Kh3 {[%clk 00:00:39]} {[%emt
00:00:11]} Be7 {[%clk 00:00:10]} {[%emt 00:00:03]} 57. Rxh5 {[%clk 00:00:35]}
{[%emt 00:00:10]} Rc3 {[%clk 00:00:12]} {[%emt 00:00:06]} 58. Rh7 {[%clk
00:00:25]} {[%emt 00:00:18]} Rxe3+ {[%clk 00:00:12]} 59. Kg4 {[%clk 00:00:27]}
Re1 {[%clk 00:00:05]} {[%emt 00:00:06]} 60. Rxe7+ {[%clk 00:00:24]} 1-0

[Event "Open Mancomunitat de la Ribera Alta (Sumacàrcer)"]
[Site "Sumacàrcer, Spain"]
[Date "2018.11.18"]
[Round "4.5"]
[White "Montalban Galvez, Antoni"]
[Black "Granero Roca, Antonio"]
[Result "0-1"]
[TimeControl "5m+3s"]
[WhiteElo "2172"]
[BlackElo "2372"]

1. d4 {[%clk 00:05:04]} {[%emt 00:00:18]} Nf6 {[%clk 00:05:05]} 2. Nf3 {[%clk
00:05:06]} g6 {[%clk 00:05:07]} 3. g3 {[%clk 00:05:05]} Bg7 {[%clk 00:05:09]} 4.
Bg2 {[%clk 00:05:07]} O-O {[%clk 00:05:09]} {[%emt 00:00:03]} 5. O-O {[%clk
00:05:07]} c5 {[%clk 00:05:11]} 6. c4 {[%clk 00:04:59]} {[%emt 00:00:34]} cxd4
{[%clk 00:05:09]} {[%emt 00:00:19]} 7. Nxd4 {[%clk 00:05:00]} Nc6 {[%clk
00:05:11]} 8. Nc3 {[%clk 00:04:58]} d6 {[%clk 00:05:09]} 9. Nxc6 {[%clk
00:04:41]} {[%emt 00:00:04]} bxc6 {[%clk 00:05:11]} 10. Bxc6 {[%clk 00:04:41]}
Rb8 {[%clk 00:05:13]} 11. Bg2 {[%clk 00:04:38]} {[%emt 00:00:04]} Qa5 {[%clk
00:05:15]} 12. Nb5 {[%clk 00:04:06]} {[%emt 00:00:33]} a6 {[%clk 00:04:56]}
{[%emt 00:00:21]} 13. Bd2 {[%clk 00:02:56]} {[%emt 00:01:17]} Qd8 {[%clk
00:04:51]} {[%emt 00:00:16]} 14. Nd4 {[%clk 00:02:38]} {[%emt 00:00:10]} Bb7
{[%clk 00:04:48]} {[%emt 00:00:08]} 15. Bxb7 {[%clk 00:01:51]} {[%emt
00:00:57]} Rxb7 {[%clk 00:04:49]} 16. Qc2 {[%clk 00:01:45]} {[%emt 00:00:11]}
Qd7 {[%clk 00:04:32]} {[%emt 00:00:13]} 17. Rad1 {[%clk 00:01:09]} {[%emt
00:00:36]} Rc8 {[%clk 00:04:26]} {[%emt 00:00:12]} 18. b3 {[%clk 00:00:43]}
{[%emt 00:00:26]} Qh3 {[%clk 00:04:19]} {[%emt 00:00:36]} 19. Nf3 {[%clk
00:00:21]} {[%emt 00:00:04]} d5 {[%clk 00:04:14]} {[%emt 00:00:07]} 20. Bg5
{[%clk 00:00:11]} {[%emt 00:00:12]} dxc4 {[%clk 00:03:54]} {[%emt 00:00:35]} 21.
Bxf6 {[%clk 00:00:12]} Bxf6 {[%clk 00:03:53]} 22. bxc4 {[%clk 00:00:14]} Rb2
{[%clk 00:03:49]} {[%emt 00:00:11]} 23. Qe4 {[%clk 00:00:13]} Rxa2 {[%clk
00:03:39]} {[%emt 00:00:09]} 24. Rd2 {[%clk 00:00:08]} {[%emt 00:00:07]} Rxd2
{[%clk 00:03:34]} {[%emt 00:00:06]} 25. Nxd2 {[%clk 00:00:10]} Qd7 {[%clk
00:03:35]} {[%emt 00:00:03]} 26. Qd3 {[%clk 00:00:05]} {[%emt 00:00:10]} Qe6
{[%clk 00:03:23]} {[%emt 00:00:12]} 27. Rc1 {[%clk 00:00:05]} {[%emt 00:00:08]}
a5 {[%clk 00:03:20]} {[%emt 00:00:03]} 28. c5 {[%clk 00:00:06]} {[%emt
00:00:04]} a4 {[%clk 00:03:17]} {[%emt 00:00:05]} 29. Ne4 {[%clk 00:05:03]}
{[%emt 00:00:14]} {Bandera} 0-1

[Event "Open Mancomunitat de la Ribera Alta (Sumacàrcer)"]
[Site "Sumacàrcer, Spain"]
[Date "2018.11.18"]
[Round "4.6"]
[White "Cruz Lledo, Pablo"]
[Black "Gimenez Saiz, Jose Raul"]
[Result "1-0"]
[TimeControl "5m+3s"]
[WhiteElo "2335"]
[BlackElo "1920"]

1. Nf3 {[%clk 00:04:59]} {[%emt 00:00:04]} Nf6 {[%clk 00:04:52]} {[%emt
00:00:14]} 2. b3 {[%clk 00:04:58]} {[%emt 00:00:04]} g6 {[%clk 00:04:54]}
{[%emt 00:00:17]} 3. Bb2 {[%clk 00:05:00]} Bg7 {[%clk 00:04:56]} 4. g3 {[%clk
00:04:56]} {[%emt 00:00:07]} O-O {[%clk 00:04:52]} 5. Bg2 {[%clk 00:04:57]} d6
{[%clk 00:04:53]} 6. d4 {[%clk 00:04:48]} {[%emt 00:00:20]} c6 {[%clk
00:04:53]} 7. O-O {[%clk 00:04:48]} Ne4 {[%clk 00:04:47]} {[%emt 00:00:04]} 8.
Nbd2 {[%clk 00:04:47]} {[%emt 00:00:04]} f5 {[%clk 00:04:48]} {[%emt 00:00:14]}
9. c4 {[%clk 00:04:37]} {[%emt 00:00:03]} Nd7 {[%clk 00:04:36]} {[%emt
00:00:10]} 10. Qc2 {[%clk 00:04:33]} {[%emt 00:00:31]} Nxd2 {[%clk 00:04:10]}
{[%emt 00:00:08]} 11. Nxd2 {[%clk 00:04:33]} {[%emt 00:00:04]} e5 {[%clk
00:04:11]} 12. dxe5 {[%clk 00:04:31]} {[%emt 00:00:07]} dxe5 {[%clk 00:04:11]}
13. e4 {[%clk 00:04:29]} {[%emt 00:00:06]} f4 {[%clk 00:03:56]} {[%emt
00:00:15]} 14. c5 {[%clk 00:04:30]} {[%emt 00:00:19]} Qe7 {[%clk 00:03:45]}
{[%emt 00:00:08]} 15. b4 {[%clk 00:04:31]} Nf6 {[%clk 00:03:35]} {[%emt
00:00:09]} 16. Nc4 {[%clk 00:04:29]} {[%emt 00:00:07]} Ne8 {[%clk 00:03:04]}
{[%emt 00:00:28]} 17. Rfd1 {[%clk 00:04:13]} {[%emt 00:00:18]} f3 {[%clk
00:03:05]} {[%emt 00:00:35]} 18. Bf1 {[%clk 00:04:13]} h5 {[%clk 00:02:50]} 19.
Rd3 {[%clk 00:04:07]} {[%emt 00:00:03]} h4 {[%clk 00:02:49]} {[%emt 00:00:04]}
20. Qb3 {[%clk 00:03:58]} {[%emt 00:00:10]} Be6 {[%clk 00:02:23]} {[%emt
00:00:50]} 21. Rxf3 {[%clk 00:03:58]} {[%emt 00:00:04]} Rxf3 {[%clk 00:02:10]}
22. Qxf3 {[%clk 00:03:58]} {[%emt 00:00:04]} Rd8 {[%clk 00:01:50]} {[%emt
00:00:14]} 23. Bxe5 {[%clk 00:03:34]} {[%emt 00:00:25]} Bxe5 {[%clk 00:01:41]}
{[%emt 00:00:21]} 24. Nxe5 {[%clk 00:03:34]} Kg7 {[%clk 00:01:04]} {[%emt
00:00:34]} 25. Rd1 {[%clk 00:03:15]} {[%emt 00:00:23]} Nf6 {[%clk 00:00:56]}
{[%emt 00:00:11]} 26. Re1 {[%clk 00:02:52]} {[%emt 00:00:26]} Bxa2 {[%clk
00:00:51]} {[%emt 00:00:26]} 27. Nc4 {[%clk 00:02:45]} {[%emt 00:00:18]} Bxc4
{[%clk 00:00:50]} 28. Bxc4 {[%clk 00:02:47]} Rd4 {[%clk 00:00:45]} 29. Bd3
{[%clk 00:02:02]} {[%emt 00:00:35]} Rxb4 {[%clk 00:00:47]} {[%emt 00:00:07]} 30.
e5 {[%clk 00:01:59]} {[%emt 00:00:07]} Ng4 {[%clk 00:00:26]} {[%emt 00:00:19]}
31. e6 {[%clk 00:01:54]} {[%emt 00:00:35]} h3 {[%clk 00:00:18]} 32. Bf1 {[%clk
00:01:44]} {[%emt 00:00:07]} Qxc5 {[%clk 00:00:16]} 33. e7 {[%emt 00:00:45]}
{Bandera} 1-0